bitfinex-derivatives/quotes_BTCF0:USTF0_20250405
["timestamp","ask_amount","ask_price","bid_price","bid_amount"]
[1743897177430,0.09946115,83349.0,83348.0,0.0840171]
[1743897177631,0.01544505,83349.0,83348.0,0.34905768]
[1743897177832,0.9218342,83350.0,83349.0,0.0840161]
[1743897178030,0.9218342,83350.0,83349.0,0.37155622]
[1743897178327,0.9218342,83350.0,83349.0,0.95502565]
[1743897178523,0.14025958,83350.0,83349.0,1.25442565]
[1743897178825,0.06472482,83353.0,83352.0,0.0840131]
[1743897179036,2e-08,83353.0,83352.0,0.83644257]
[1743897179233,0.14377806,83359.0,83358.0,0.084007]
[1743897179535,0.14377806,83359.0,83358.0,0.5764448]
[1743897180123,0.07066386,83359.0,83358.0,0.5764448]
[1743897180322,8e-05,83363.0,83362.0,0.084003]
[1743897180323,6e-08,83363.0,83362.0,0.084003]
[1743897180522,8e-05,83371.0,83362.0,0.084003]
[1743897180523,0.1109225,83366.0,83365.0,0.2832]
[1743897180723,1.0,83375.0,83374.0,0.0839909]
[1743897180928,1.0,83375.0,83374.0,1.14507148]
[1743897181128,0.9369832,83375.0,83374.0,1.5416687]
[1743897181325,0.24978372,83398.0,83397.0,0.0839677]
[1743897181529,0.24978372,83398.0,83397.0,0.4671255]
[1743897181737,1.1464615,83400.0,83397.0,1.4692778]
[1743897181929,1.1464615,83400.0,83397.0,0.6862]
[1743897181930,0.0839667,83398.0,83397.0,0.6862]
[1743897182233,1.1464615,83400.0,83397.0,0.86952453]
[1743897182420,0.0839667,83398.0,83397.0,0.73832]
[1743897182619,1.188444,83400.0,83397.0,0.73343895]
[1743897182620,1.1464615,83400.0,83397.0,0.73343895]
[1743897182819,1.1464615,83400.0,83399.0,0.3608]
[1743897183026,1.1464615,83400.0,83399.0,0.88296465]
[1743897183229,1.1464615,83400.0,83399.0,0.93536465]
[1743897183531,1.0822654,83400.0,83399.0,1.35068067]
[1743897183724,0.52713717,83400.0,83399.0,1.6823869]
[1743897183922,0.39720421,83432.0,83411.0,0.018]
[1743897184127,0.39720421,83432.0,83431.0,0.0839335]
[1743897184426,0.39720421,83432.0,83431.0,0.7581335]
[1743897184722,0.48113671,83432.0,83431.0,0.63976]
[1743897184926,0.39720421,83432.0,83431.0,0.70135836]
[1743897185127,0.39720421,83432.0,83431.0,0.78529186]
[1743897185330,0.39720421,83432.0,83431.0,0.52201186]
[1743897185632,0.064,83462.0,83436.0,0.0419639]
[1743897185828,0.5222744,83450.0,83449.0,0.1839154]
[1743897186021,0.3424744,83450.0,83449.0,1.4617954]
[1743897186227,0.4263888,83450.0,83449.0,0.91543767]
[1743897186732,0.4263888,83450.0,83449.0,0.99935307]
[1743897186934,0.3424744,83450.0,83449.0,0.94671307]
[1743897187238,0.3424744,83450.0,83449.0,0.99939307]
[1743897187536,0.3424744,83450.0,83449.0,1.14939307]
[1743897187737,0.3025695,83450.0,83449.0,1.87099307]
[1743897187938,0.3025695,83450.0,83449.0,1.72099307]
[1743897188237,0.3025695,83450.0,83449.0,0.74855307]
[1743897188439,0.3864839,83450.0,83449.0,0.38775307]
[1743897188926,0.4495839,83450.0,83449.0,0.30383767]
[1743897189439,0.0839265,83438.0,83437.0,0.07072]
[1743897189737,0.0839265,83438.0,83437.0,0.33072]
[1743897189936,0.0839265,83438.0,83437.0,0.278]
[1743897190130,0.2976665,83438.0,83437.0,0.27936]
[1743897190337,0.00064,83438.0,83437.0,0.36628451]
[1743897190526,0.00011767,83442.0,83439.0,0.0419624]
[1743897190727,0.00011767,83442.0,83441.0,0.0839234]
[1743897191034,0.00011767,83442.0,83441.0,0.7721203]
[1743897191636,0.00011767,83442.0,83441.0,0.2729969]
[1743897191827,0.08404007,83442.0,83441.0,0.2739969]
[1743897192027,0.08472007,83442.0,83441.0,0.2739969]
[1743897192426,0.08472007,83442.0,83441.0,0.3269569]
[1743897192634,0.14872007,83442.0,83441.0,0.3279569]
[1743897193038,0.14872007,83442.0,83441.0,0.3459569]
[1743897193238,0.14872007,83442.0,83441.0,0.4118803]
[1743897193438,0.14872007,83442.0,83441.0,0.4298803]
[1743897193737,0.14872007,83442.0,83441.0,0.4288803]
[1743897193943,0.06479767,83442.0,83441.0,0.4291603]
[1743897194129,0.06479767,83442.0,83441.0,0.3759203]
[1743897194329,0.06479767,83442.0,83441.0,0.4281603]
[1743897194730,0.14872007,83442.0,83441.0,0.4281603]
[1743897194930,0.14872007,83442.0,83441.0,0.3442369]
[1743897195126,0.14872007,83442.0,83441.0,0.0006]
[1743897195340,0.0839255,83439.0,83438.0,0.1371662]
[1743897195535,0.4454055,83439.0,83438.0,0.27064]
[1743897195733,0.23521286,83439.0,83438.0,0.18074]
[1743897195936,0.0839295,83435.0,83434.0,0.05349984]
[1743897196134,0.08488951,83435.0,83434.0,0.25085984]
[1743897196335,0.08488951,83435.0,83434.0,0.26085984]
[1743897196841,0.08488951,83435.0,83434.0,0.11085984]
[1743897197740,0.0419632,83438.0,83434.0,0.11085984]
[1743897198036,0.0839295,83435.0,83434.0,0.11085984]
[1743897198241,0.00060001,83435.0,83431.0,0.01091581]
[1743897198442,0.0839446,83420.0,83415.0,0.0839489]
[1743897198647,0.0847046,83420.0,83419.0,0.2606]
[1743897199149,0.1155046,83420.0,83419.0,0.2606]
[1743897199441,0.1155046,83420.0,83419.0,0.0006]
[1743897199633,0.1155046,83420.0,83413.0,0.05324]
[1743897199634,0.0839456,83419.0,83413.0,0.05324]
[1743897199836,0.0839456,83419.0,83418.0,0.00893217]
[1743897200035,0.0839526,83412.0,83411.0,0.00017984]
[1743897200243,0.0839526,83412.0,83411.0,0.28017984]
[1743897201547,0.12734518,83421.0,83411.0,0.28017984]
[1743897201747,0.0839526,83412.0,83411.0,0.28017984]
[1743897203439,0.0839526,83412.0,83411.0,0.00934157]
[1743897203646,0.0839526,83412.0,83397.0,0.018]
[1743897203647,0.0839617,83403.0,83402.0,0.05316]
[1743897203840,0.0839647,83400.0,83399.0,0.00881195]
[1743897204043,0.0839647,83400.0,83399.0,0.26]
[1743897204444,0.08492471,83400.0,83399.0,0.26]
[1743897205150,0.11692471,83400.0,83399.0,0.26]
[1743897205344,0.0839677,83397.0,83396.0,0.0839681]
[1743897205553,0.0839677,83397.0,83396.0,0.3439681]
[1743897206638,0.0839677,83397.0,83396.0,0.3449681]
[1743897207649,0.0839677,83397.0,83396.0,0.35381434]
[1743897208250,0.0839677,83397.0,83396.0,0.35481434]
[1743897208445,0.0839677,83397.0,83396.0,0.37295806]
[1743897209349,0.00096001,83397.0,83396.0,0.37295806]
[1743897209548,0.0839674,83398.0,83397.0,0.1259491]
[1743897209745,0.0839674,83398.0,83397.0,0.38409282]
[1743897209941,0.08492741,83398.0,83397.0,0.38409282]
[1743897210239,0.08492741,83398.0,83397.0,0.41795282]
[1743897210750,0.00096001,83398.0,83397.0,0.41795282]
[1743897210942,0.08404944,83403.0,83402.0,0.0839627]
[1743897211147,0.11630944,83403.0,83402.0,0.74363073]
[1743897211347,0.11554944,83403.0,83402.0,0.74363073]
[1743897213044,0.11554944,83403.0,83402.0,0.76163073]
[1743897213248,0.11554944,83403.0,83402.0,0.74363073]
[1743897213449,0.11554944,83403.0,83402.0,0.67766803]
[1743897214054,0.11554944,83403.0,83402.0,0.76163073]
[1743897214853,0.11554944,83403.0,83402.0,0.76154491]
[1743897215758,0.11554944,83403.0,83402.0,0.79234491]
[1743897216352,0.11554944,83403.0,83402.0,0.43154491]
[1743897216552,0.11622944,83403.0,83402.0,0.79234491]
[1743897216753,0.11554944,83403.0,83402.0,0.79234491]
[1743897217750,0.08404944,83403.0,83402.0,0.79234491]
[1743897218358,0.08404944,83403.0,83402.0,0.79241301]
[1743897218754,8.774e-05,83403.0,83402.0,0.79241301]
[1743897222465,8.774e-05,83403.0,83402.0,0.43161301]
[1743897222666,8.774e-05,83403.0,83402.0,0.79241301]
[1743897222853,8.774e-05,83403.0,83402.0,0.82301301]
[1743897223364,8.774e-05,83403.0,83402.0,0.47621427]
[1743897223567,8.774e-05,83403.0,83402.0,0.83701427]
[1743897223858,8.774e-05,83403.0,83402.0,0.83694653]
[1743897224366,0.04215814,83408.0,83402.0,0.83694653]
[1743897224367,0.05276,83439.0,83406.0,0.0839557]
[1743897224564,0.0419773,83411.0,83408.0,0.0839566]
[1743897224764,0.0839546,83410.0,83409.0,0.09438383]
[1743897224965,0.0846346,83410.0,83409.0,0.71582383]
[1743897225165,0.0839546,83410.0,83409.0,0.78576356]
[1743897225465,0.08410559,83410.0,83409.0,0.79977943]
[1743897227569,0.08410559,83410.0,83409.0,0.79961031]
[1743897227967,0.3608,83443.0,83433.0,0.0839315]
[1743897228169,0.00068,83434.0,83433.0,0.43987521]
[1743897228472,0.0839158,83449.0,83433.0,0.38365253]
[1743897228664,0.3612,83452.0,83433.0,0.38365253]
[1743897228665,0.3032895,83450.0,83449.0,0.0839154]
[1743897228871,8e-08,83450.0,83449.0,0.35678725]
[1743897229073,0.21239173,83474.0,83465.0,0.0838993]
[1743897229368,0.21239173,83474.0,83473.0,0.0838913]
[1743897229574,0.21307173,83474.0,83473.0,0.6846913]
[1743897229757,0.06919533,83474.0,83473.0,0.91499666]
[1743897229959,0.59841823,83475.0,83474.0,0.0838903]
[1743897230266,0.59841823,83475.0,83474.0,0.43639566]
[1743897230468,0.59841823,83475.0,83474.0,0.5779703]
[1743897230665,0.41352433,83475.0,83474.0,0.69772879]
[1743897230869,0.30231463,83475.0,83474.0,0.81174466]
[1743897231165,3e-08,83475.0,83474.0,0.81174466]
[1743897231372,3e-08,83488.0,83487.0,0.0838772]
[1743897231572,0.321,83495.0,83487.0,0.0838772]
[1743897231573,0.17343013,83495.0,83494.0,0.0838702]
[1743897231876,0.24769035,83511.0,83499.0,0.0838651]
[1743897232074,5e-08,83511.0,83510.0,0.9054541]
[1743897232275,0.23162417,83519.0,83518.0,0.0838461]
[1743897232469,0.3608,83566.0,83524.0,0.1018]
[1743897232470,0.88236437,83525.0,83524.0,0.1018]
[1743897232665,0.96620337,83525.0,83524.0,0.68376]
[1743897232863,0.88236437,83525.0,83524.0,0.89964]
[1743897233064,0.88236437,83525.0,83524.0,0.9176]
[1743897233371,1.09890476,83550.0,83549.0,0.083815]
[1743897233574,1.09890476,83550.0,83549.0,0.758735]
[1743897233775,1.09890476,83550.0,83549.0,1.02978035]
[1743897233961,0.22710711,83550.0,83549.0,1.02978035]
[1743897234166,0.01,83571.0,83549.0,1.0099013]
[1743897234361,0.01,83571.0,83559.0,0.3608]
[1743897234563,0.01,83571.0,83559.0,1.1214849]
[1743897234764,0.01,83571.0,83559.0,1.2714849]
[1743897235086,0.01,83571.0,83570.0,0.0837939]
[1743897235276,0.01,83571.0,83570.0,0.3437939]
[1743897235578,1.3,83600.0,83570.0,0.3437939]
[1743897235579,0.83048,83575.0,83574.0,0.0837899]
[1743897235782,0.7561939,83575.0,83574.0,1.4377899]
[1743897235967,1.3,83600.0,83574.0,1.44924]
[1743897235968,1.26937894,83600.0,83574.0,1.44924]
[1743897236168,1.2004,83600.0,83575.0,0.41769496]
[1743897236373,0.083768,83597.0,83596.0,0.0837654]
[1743897236569,0.71415401,83600.0,83599.0,0.0837648]
[1743897236769,0.71415401,83600.0,83599.0,0.42634899]
[1743897237076,0.71415401,83600.0,83599.0,0.32638899]
[1743897237077,0.99208232,83600.0,83599.0,0.32638899]
[1743897237277,0.90031852,83600.0,83599.0,0.41015379]
[1743897237475,0.70615401,83600.0,83599.0,0.52977173]
[1743897237677,0.70615401,83600.0,83599.0,1.19497173]
[1743897237873,0.9667,83625.0,83624.0,0.0837398]
[1743897238178,0.9667,83625.0,83624.0,1.55553878]
[1743897238179,0.7843945,83625.0,83624.0,1.55553878]
[1743897238483,0.7843945,83625.0,83624.0,1.65210931]
[1743897238672,0.97855901,83625.0,83624.0,0.65141983]
[1743897238983,1.49963781,83625.0,83624.0,0.29061983]
[1743897239175,1.49963781,83625.0,83610.0,0.3608]
[1743897239176,0.0418725,83619.0,83610.0,0.16663549]
[1743897239370,0.0837598,83604.0,83603.0,0.3625942]
[1743897239571,0.3710998,83604.0,83603.0,0.6339142]
[1743897239776,0.3710998,83604.0,83592.0,0.20787763]
[1743897239777,0.0837708,83593.0,83592.0,0.20787763]
[1743897239973,0.37207081,83593.0,83592.0,0.20879763]
[1743897240183,0.37219165,83593.0,83592.0,0.21794526]
[1743897240374,0.37219165,83593.0,83592.0,0.46794526]
[1743897240579,0.0837789,83585.0,83584.0,0.27734954]
[1743897240876,0.0837789,83585.0,83584.0,0.27802954]
[1743897240877,0.3711189,83585.0,83584.0,0.27802954]
[1743897241071,0.0418971,83570.0,83567.0,0.05512]
[1743897241273,0.0837959,83568.0,83567.0,0.2608]
[1743897241468,0.3718559,83568.0,83567.0,0.19979326]
[1743897241672,0.0419011,83562.0,83559.0,0.05512]
[1743897241874,0.3711439,83560.0,83559.0,0.26]
[1743897242071,0.37210391,83560.0,83559.0,0.26939909]
[1743897242684,0.0838119,83552.0,83551.0,0.00017949]
[1743897242876,0.12102903,83552.0,83551.0,0.26077949]
[1743897243084,0.12094903,83552.0,83551.0,0.34459249]
[1743897243383,0.11982902,83552.0,83551.0,0.34459249]
[1743897243576,0.20476093,83552.0,83551.0,0.35347001]
[1743897243775,0.18554903,83552.0,83551.0,0.35347001]
[1743897244087,0.3608,83570.0,83567.0,0.0837969]
[1743897244277,0.11982902,83562.0,83556.0,0.3608]
[1743897244589,0.0838069,83557.0,83556.0,0.2706]
[1743897244789,0.0838069,83557.0,83551.0,0.00905701]
[1743897244790,0.0838119,83552.0,83551.0,0.00905701]
[1743897245084,0.56576092,83552.0,83551.0,0.28064]
[1743897245287,0.56576092,83552.0,83551.0,0.28]
[1743897245487,0.23576092,83552.0,83551.0,0.28]
[1743897245692,0.23576092,83552.0,83551.0,0.363813]
[1743897245879,0.23576092,83552.0,83551.0,0.28]
[1743897246072,0.02030036,83552.0,83551.0,0.28]
[1743897246271,0.10411336,83552.0,83551.0,0.28]
[1743897246486,0.10411336,83552.0,83551.0,0.28917539]
[1743897246682,0.10411336,83552.0,83550.0,0.00014556]
[1743897246881,0.08382,83544.0,83540.0,0.05564]
[1743897247080,0.44462,83544.0,83543.0,0.28903886]
[1743897247284,0.083828,83536.0,83534.0,0.05572]
[1743897247484,0.083828,83536.0,83535.0,0.25059855]
[1743897247686,0.26672194,83544.0,83535.0,0.25059855]
[1743897247884,0.08393971,83536.0,83535.0,0.25978112]
[1743897249081,0.08393971,83536.0,83535.0,0.28978112]
[1743897249286,0.08393971,83536.0,83535.0,0.24978112]
[1743897249481,0.47643971,83536.0,83535.0,0.00978112]
[1743897249681,0.11563971,83536.0,83535.0,0.00978112]
[1743897249883,0.11563971,83536.0,83535.0,0.25978112]
[1743897250097,0.11627971,83536.0,83535.0,0.24038112]
[1743897250378,0.11627971,83536.0,83535.0,0.10038112]
[1743897250589,0.11627971,83536.0,83535.0,0.11038112]
[1743897250787,0.083834,83530.0,83529.0,0.00013327]
[1743897251085,0.084474,83530.0,83529.0,0.09073327]
[1743897251287,0.084474,83530.0,83529.0,0.09953518]
[1743897251476,0.084474,83530.0,83529.0,0.00953518]
[1743897251679,0.084474,83530.0,83529.0,0.25953518]
[1743897252079,0.3608,83538.0,83529.0,0.25953518]
[1743897252280,0.083834,83530.0,83529.0,0.00953518]
[1743897252581,0.084594,83530.0,83529.0,0.11953518]
[1743897253086,0.08471313,83530.0,83529.0,0.11953518]
[1743897253785,0.08471313,83530.0,83529.0,0.00953518]
[1743897253992,0.08471313,83530.0,83529.0,0.20953518]
[1743897254379,0.08471313,83530.0,83529.0,0.26953518]
[1743897254888,0.44551313,83530.0,83529.0,0.26953518]
[1743897255593,0.04192,83524.0,83520.0,0.00179576]
[1743897255788,0.0838431,83521.0,83520.0,0.26179576]
[1743897256092,0.0844831,83521.0,83520.0,0.00239576]
[1743897256391,0.0844831,83521.0,83520.0,0.00179576]
[1743897256590,0.0844831,83521.0,83520.0,0.10088939]
[1743897256894,0.0844831,83521.0,83520.0,0.24179576]
[1743897257093,0.0844831,83521.0,83520.0,0.00247576]
[1743897257279,0.0838511,83513.0,83512.0,0.00017949]
[1743897257608,0.0844911,83513.0,83512.0,0.21017949]
[1743897257890,0.0844911,83513.0,83512.0,0.00077949]
[1743897258093,0.0844911,83513.0,83512.0,0.09017949]
[1743897258295,0.0844911,83513.0,83512.0,0.09077949]
[1743897258692,0.0844911,83513.0,83512.0,0.54453241]
[1743897258693,0.00064,83513.0,83512.0,0.54453241]
[1743897258892,0.1486446,83520.0,83518.0,0.0838451]
[1743897259090,0.1493646,83520.0,83519.0,0.1405251]
[1743897259290,0.1493646,83520.0,83519.0,0.3811251]
[1743897260091,0.06552,83520.0,83519.0,0.3811251]
[1743897260390,0.00011913,83530.0,83527.0,0.0419185]
[1743897260596,0.3608,83553.0,83541.0,0.0419111]
[1743897260789,0.0845007,83544.0,83543.0,0.0838196]
[1743897261096,0.0838207,83544.0,83543.0,0.3544196]
[1743897261291,0.0838207,83544.0,83543.0,0.3860196]
[1743897261498,0.08390773,83544.0,83543.0,0.3860196]
[1743897262089,8.703e-05,83544.0,83543.0,0.3860196]
[1743897262492,8.703e-05,83544.0,83543.0,0.4188196]
[1743897262693,0.03337961,83552.0,83551.0,0.083813]
[1743897262694,0.00017961,83552.0,83551.0,0.083813]
[1743897262889,0.00017961,83552.0,83551.0,0.374413]
[1743897263087,0.00017961,83552.0,83551.0,0.406013]
[1743897263896,0.00031745,83552.0,83551.0,0.406013]
[1743897264598,0.08412935,83552.0,83551.0,0.35908]
[1743897264798,0.08476935,83552.0,83551.0,0.35908]
[1743897265103,0.08476935,83552.0,83551.0,0.442893]
[1743897266389,0.08412935,83552.0,83551.0,0.442893]
[1743897269493,0.08412935,83552.0,83551.0,0.386013]
[1743897269696,0.4338025,83559.0,83551.0,0.5264238]
[1743897269896,0.0838119,83552.0,83551.0,0.5264238]
[1743897270293,0.0838119,83552.0,83551.0,0.4426108]
[1743897270494,0.0838119,83552.0,83551.0,0.3022]
[1743897270689,0.08396663,83552.0,83551.0,0.0322]
[1743897270895,0.083828,83536.0,83530.0,0.42227004]
[1743897271194,0.084668,83536.0,83535.0,0.27077961]
[1743897271396,0.084708,83536.0,83535.0,0.27077961]
[1743897275599,0.084708,83536.0,83535.0,0.73053902]
[1743897275993,0.084708,83536.0,83535.0,1.17516802]
[1743897275994,0.00088,83536.0,83535.0,1.17516802]
[1743897276193,0.0838264,83540.0,83539.0,0.083823]
[1743897276694,0.0838264,83540.0,83539.0,0.283823]
[1743897279302,0.0838264,83540.0,83539.0,0.67958241]
[1743897280006,0.0846264,83540.0,83539.0,0.63827091]
[1743897280207,0.0846264,83540.0,83539.0,0.65635941]
[1743897280405,0.0846264,83540.0,83539.0,0.67635941]
[1743897280601,0.0846264,83540.0,83539.0,0.39635941]
[1743897280811,0.1470264,83540.0,83539.0,0.64635941]
[1743897281211,0.1470264,83540.0,83539.0,0.39635941]
[1743897282207,0.0419205,83524.0,83521.0,0.54499701]
[1743897282405,0.0419205,83524.0,83523.0,0.083841]
[1743897282605,0.0419205,83524.0,83523.0,0.324441]
[1743897282907,0.0419205,83524.0,83523.0,0.386041]
[1743897285808,0.36097961,83532.0,83531.0,0.083833]
[1743897286014,0.36097961,83532.0,83531.0,0.323833]
[1743897286500,0.36097961,83532.0,83531.0,0.385433]
[1743897287104,0.36197961,83532.0,83531.0,0.385433]
[1743897287707,0.00117961,83532.0,83531.0,0.385433]
[1743897287900,0.0838181,83546.0,83545.0,0.041909]
[1743897288100,0.08485811,83546.0,83545.0,0.28]
[1743897292511,0.00015473,83552.0,83551.0,0.083813]
[1743897292719,0.00015473,83552.0,83551.0,0.38100285]
[1743897293302,0.0004,83560.0,83553.0,0.0838109]
[1743897293505,0.0004,83560.0,83559.0,0.0838049]
[1743897293707,0.0004,83560.0,83559.0,0.41099475]
[1743897294114,0.0004,83560.0,83559.0,0.47449475]
[1743897294309,0.00047774,83560.0,83559.0,0.47449475]
[1743897294711,0.00047774,83560.0,83559.0,0.53017475]
[1743897295119,0.00047774,83560.0,83559.0,0.53077475]
[1743897295411,0.00017961,83568.0,83567.0,0.0837969]
[1743897295616,0.00017961,83568.0,83567.0,0.3243969]
[1743897295617,0.00085961,83568.0,83567.0,0.3243969]
[1743897295812,0.08397551,83568.0,83567.0,0.3891969]
[1743897296009,0.08469551,83568.0,83567.0,0.36104]
[1743897296209,0.08397551,83568.0,83567.0,0.36104]
[1743897296411,0.08397551,83568.0,83567.0,0.3054]
[1743897296607,0.50735551,83568.0,83567.0,0.2622]
[1743897297017,0.50735551,83568.0,83567.0,0.27127615]
[1743897299512,0.47545551,83568.0,83567.0,0.27127615]
[1743897299712,0.47545551,83568.0,83567.0,0.30437615]
[1743897300523,0.47545551,83568.0,83567.0,0.38817305]
[1743897301421,0.11465551,83568.0,83567.0,0.38817305]
[1743897302412,0.08465551,83568.0,83567.0,0.38817305]
[1743897305021,0.08397551,83568.0,83567.0,0.38817305]
[1743897305224,0.08465551,83568.0,83567.0,0.38817305]
[1743897305623,0.44545551,83568.0,83567.0,0.23967615]
[1743897306214,0.47605551,83568.0,83567.0,0.23967615]
[1743897307322,0.47605551,83568.0,83557.0,0.35476736]
[1743897307323,0.0419014,83561.0,83557.0,0.35476736]
[1743897307518,0.4446059,83558.0,83557.0,0.35536736]
[1743897307724,0.44548591,83558.0,83557.0,0.35536736]
[1743897308510,0.44548591,83558.0,83557.0,0.60536736]
[1743897308716,0.44548591,83558.0,83557.0,0.35536736]
[1743897308915,0.44548591,83558.0,83557.0,0.62439334]
[1743897309116,0.08468591,83558.0,83557.0,0.70820024]
[1743897309323,0.08468591,83558.0,83557.0,0.26962598]
[1743897309723,0.08468591,83558.0,83557.0,0.41473288]
[1743897310133,0.08468591,83558.0,83557.0,0.33092598]
[1743897310620,0.08468591,83558.0,83557.0,0.26962598]
[1743897310825,0.08468591,83558.0,83557.0,0.00962598]
[1743897311519,0.08468591,83558.0,83557.0,0.25962598]
[1743897312728,0.08468591,83558.0,83557.0,0.00962598]
[1743897313118,0.08468591,83558.0,83557.0,0.24962598]
[1743897313318,0.08468591,83558.0,83557.0,0.00962598]
[1743897313518,0.08468591,83558.0,83557.0,0.00902598]
[1743897313720,0.0838119,83552.0,83551.0,0.0613]
[1743897313926,0.0838119,83552.0,83551.0,0.3013]
[1743897314330,0.0838119,83552.0,83551.0,0.31033227]
[1743897314531,0.0838119,83552.0,83551.0,0.39414527]
[1743897314930,0.0838119,83552.0,83551.0,0.31033227]
[1743897315228,0.08469191,83552.0,83551.0,0.39474527]
[1743897316722,0.00088001,83552.0,83551.0,0.39474527]
[1743897316922,0.3608,83572.0,83566.0,0.0837979]
[1743897317127,0.08489581,83568.0,83567.0,0.1481969]
[1743897317324,0.08489581,83568.0,83567.0,0.3887969]
[1743897318427,0.08489581,83568.0,83567.0,0.305]
[1743897318824,0.08489581,83568.0,83567.0,0.3887969]
[1743897320324,0.08489581,83568.0,83567.0,0.305]
[1743897320724,0.08489581,83568.0,83567.0,0.3887969]
[1743897322135,0.08489581,83568.0,83567.0,0.305]
[1743897323434,0.0837999,83565.0,83563.0,0.3495994]
[1743897323638,0.0837999,83565.0,83564.0,0.0837995]
[1743897323930,0.0837999,83565.0,83564.0,0.3637995]
[1743897325038,0.0837999,83565.0,83564.0,0.3643995]
[1743897326541,0.0837999,83565.0,83564.0,0.4279995]
[1743897326843,0.0837999,83565.0,83564.0,0.3442]
[1743897327331,0.1168999,83565.0,83564.0,0.3442]
[1743897327534,0.4776999,83565.0,83564.0,0.0006]
[1743897327744,0.50943991,83565.0,83564.0,0.2706]
[1743897328237,0.50943991,83565.0,83564.0,0.2506]
[1743897328539,0.50943991,83565.0,83564.0,0.0006]
[1743897328729,0.50943991,83565.0,83564.0,0.2706]
[1743897329043,0.0838049,83559.0,83558.0,0.35476736]
[1743897329231,0.08504491,83559.0,83558.0,0.35536736]
[1743897329630,0.14884491,83559.0,83558.0,0.35536736]
[1743897329835,0.29884491,83559.0,83558.0,0.35536736]
[1743897330040,0.0838119,83552.0,83551.0,0.01142601]
[1743897330232,0.4446119,83552.0,83551.0,0.01142601]
[1743897330632,0.083814,83550.0,83549.0,0.42623294]
[1743897331034,0.083814,83550.0,83549.0,0.43528896]
[1743897331342,0.083828,83536.0,83530.0,0.0657]
[1743897331540,0.446108,83536.0,83535.0,0.07059855]
[1743897331736,0.446108,83536.0,83535.0,0.11780842]
[1743897332238,0.509808,83536.0,83535.0,0.11780842]
[1743897332431,0.509808,83536.0,83535.0,0.07059855]
[1743897333436,0.509808,83536.0,83535.0,0.07960788]
[1743897334434,0.085308,83536.0,83535.0,0.12676228]
[1743897334634,0.085308,83536.0,83535.0,0.21059128]
[1743897334830,0.00148,83536.0,83535.0,0.21059128]
[1743897335139,0.085308,83536.0,83535.0,0.21059128]
[1743897335440,0.083828,83537.0,83536.0,0.083828]
[1743897335642,0.0328,83541.0,83539.0,0.083824]
[1743897335643,0.083825,83540.0,83539.0,0.083824]
[1743897335837,0.083825,83540.0,83539.0,0.29]
[1743897336033,0.08522501,83540.0,83539.0,0.29]
[1743897336632,0.08522501,83540.0,83539.0,0.373825]
[1743897337039,0.00140001,83540.0,83539.0,0.373825]
[1743897337537,0.00140001,83540.0,83539.0,0.420968]
[1743897338548,0.0001795,83544.0,83543.0,0.083821]
[1743897338743,0.0001795,83544.0,83543.0,0.360964]
[1743897339546,0.0001795,83544.0,83543.0,0.721764]
[1743897339747,0.0311,83563.0,83561.0,0.0838025]
[1743897340049,0.0838009,83563.0,83562.0,0.0419009]
[1743897340347,0.0852809,83563.0,83562.0,0.2919009]
[1743897340753,0.0852809,83563.0,83562.0,0.25]
[1743897345255,0.1168809,83563.0,83562.0,0.25]
[1743897346367,0.0838089,83555.0,83554.0,0.0001795]
[1743897346552,0.0852889,83555.0,83554.0,0.2501795]
[1743897347348,0.1508889,83555.0,83554.0,0.2501795]
[1743897349757,0.1508889,83555.0,83554.0,0.0001795]
[1743897349959,0.1508889,83555.0,83554.0,0.2801795]
[1743897351345,0.1508889,83555.0,83544.0,0.0327]
[1743897351346,0.083819,83545.0,83544.0,0.0327]
[1743897351554,0.444619,83545.0,83544.0,0.2927]
[1743897351945,0.444619,83545.0,83544.0,0.26]
[1743897352543,0.083826,83538.0,83537.0,0.0305]
[1743897352743,0.083826,83538.0,83537.0,0.34763032]
[1743897353262,0.083826,83538.0,83537.0,0.3005]
[1743897353556,0.444626,83538.0,83537.0,0.27]
[1743897353751,0.508426,83538.0,83537.0,0.27]
[1743897355162,0.50982601,83538.0,83537.0,0.27]
[1743897357572,0.11712601,83538.0,83537.0,0.353827]
[1743897357768,0.11712601,83538.0,83537.0,0.3308]
[1743897362979,0.11712601,83538.0,83537.0,0.54358682]
[1743897363475,0.11712601,83538.0,83537.0,0.51288682]
[1743897363676,0.11712601,83538.0,83537.0,0.48278682]
[1743897366584,0.11712601,83538.0,83537.0,0.27]
[1743897370886,0.00140001,83538.0,83537.0,0.27]
[1743897371089,0.00140001,83538.0,83537.0,0.384427]
[1743897371291,0.0838249,83540.0,83539.0,0.125735]
[1743897371491,0.0419031,83558.0,83552.0,0.0838119]
[1743897371697,0.08539041,83553.0,83552.0,0.3138119]
[1743897372691,0.08539041,83553.0,83552.0,0.3755119]
[1743897373280,0.00157951,83553.0,83552.0,0.5255119]
[1743897373485,0.0699,83562.0,83561.0,0.0838029]
[1743897373687,0.0837977,83567.0,83566.0,0.0837959]
[1743897373884,0.0837977,83567.0,83566.0,0.3537959]
[1743897374592,0.08483771,83567.0,83566.0,0.4176959]
[1743897375394,0.08483771,83567.0,83566.0,0.3339]
[1743897376295,0.08483771,83567.0,83566.0,0.4176979]
[1743897377689,0.08483771,83567.0,83566.0,0.3339]
[1743897377993,0.08483771,83567.0,83566.0,0.54657493]
[1743897378185,0.4445977,83567.0,83566.0,0.54657493]
[1743897379798,0.4456777,83567.0,83566.0,0.54657493]
[1743897380398,0.0848777,83567.0,83566.0,0.54657493]
[1743897380794,0.4456777,83567.0,83566.0,0.54657493]
[1743897381195,0.4456777,83567.0,83566.0,0.21267493]
[1743897381402,0.0838009,83563.0,83562.0,0.21267493]
[1743897381703,0.0848009,83563.0,83562.0,0.46267493]
[1743897381888,0.0838049,83559.0,83558.0,0.0001795]
[1743897382095,0.4446049,83559.0,83558.0,0.0001795]
[1743897382295,0.4456049,83559.0,83558.0,0.2601795]
[1743897382695,0.0848049,83559.0,83558.0,0.3439854]
[1743897383088,0.0848049,83559.0,83558.0,0.2601795]
[1743897383292,0.0848049,83559.0,83558.0,0.3526795]
[1743897385002,0.0848049,83559.0,83558.0,0.0001795]
[1743897385300,0.0848049,83559.0,83558.0,0.2701795]
[1743897385804,0.0848049,83559.0,83558.0,0.0001795]
[1743897386394,0.0848049,83559.0,83558.0,0.2701795]
[1743897386699,0.0848049,83559.0,83558.0,0.0001795]
[1743897386901,0.0848049,83559.0,83558.0,0.2601795]
[1743897387098,0.0848049,83559.0,83558.0,0.0001795]
[1743897387697,0.0848049,83559.0,83558.0,0.2801795]
[1743897387902,0.0848049,83559.0,83558.0,0.0001795]
[1743897389006,0.0848049,83559.0,83558.0,0.2501795]
[1743897389207,0.0848049,83559.0,83558.0,0.0001795]
[1743897389411,0.0848049,83559.0,83558.0,0.2801795]